[Event "45th FIDE Olympiad 2024"]
[Site "Budapest"]
[Date "2024.09.12"]
[Round "2.118"]
[White "Andersen, Mads"]
[Black "Gemy, Jose Daniel"]
[Result "1/2-1/2"]
[ECO "C65"]
[WhiteElo "2598"]
[BlackElo "2315"]
[Annotator "TA"]
[PlyCount "187"]
[EventDate "2024.09.05"]
[EventType "team-tourn"]
[EventCountry "HUN"]
[SourceTitle "playchess.com"]
[Source "ChessBase"]
[SourceQuality "1"]
[WhiteTeam "Denmark"]
[BlackTeam "Bolivia"]
[WhiteTeamCountry "DEN"]
[BlackTeamCountry "BOL"]
[TimeControl "40/5400+30:1800+30"]

{[%evp 9,187,22,19,12,17,24,31,24,27,14,24,25,25,27,34,12,13,0,56,59,46,47,57,37,34,31,39,-16,-2,-14,0,-20,0,0,0,-7,-9,-58,40,33,84,93,83,65,70,72,131,122,132,52,40,48,41,33,46,0,0,0,0,0,0,0,64,0,0,0,0,0,0,0,0,0,0,3,27,15,30,0,114,87,1141,1141,1141,1129,1053,965,352,0,0,0,1264,1264,1165,158,96,96,115,0,0,0,0,0,0,0,0,0,0,0,0,0,0,0,0,0,0,0,0,0,0,0,0,0,0,0,0,0,0,0,0,0,0,0,0,0,0,0,0,0,0,0,0,0,0,0,0,0,0,0,0,0,0,0,0,0,0,0,0,0,0,0,0,0,0,0,0,0,0,0,0,0,0,0,0,0,0,0,0,0,0,0]} 1. e4 e5 2. Nf3 Nc6 3. Bb5 Nf6 {[%cal Bg8f6,Bf6d7,Bd7b6][%mdl 32]} 4. d3 Bc5 5. Bxc6 dxc6 6. Nbd2 {[%cal Oe1g1,Bb1d2,Bd2c4,Bc4a5][%mdl 32]} (6. Nxe5 $2 Qd4 7. Be3 Qxe5 $19) 6... Be6 7. O-O (7. Nxe5 $2 Qd4 8. Rf1 Qxe5 $19) 7... Qd6 8. b3 {White is slightly better.} Nd7 9. Ng5 f6 10. Nxe6 Qxe6 11. Nc4 Nb6 12. Na5 O-O-O 13. Qe1 g5 ({Black should try} 13... Bd4 $11 14. c3 Bc5) 14. b4 $14 Be7 15. a4 h5 16. Be3 f5 17. exf5 Qxf5 18. Bxb6 (18. b5 $14 c5 19. Kh1) 18... cxb6 $11 19. Nc4 Rhe8 {[%cal Oe5e4]} 20. f3 {[%cal Ob4b5]} (20. Nxe5 $2 Bf6 21. Qd1 Bxe5 $19 (21... Rxe5 $2 22. d4 $19)) (20. a5 b5 21. Ne3 Qf7 $15) 20... g4 21. Rb1 (21. Qxe5 $2 Bc5+ 22. bxc5 Rxe5 $19) 21... gxf3 22. Rxf3 Qg4 {[%cal Oe5e4]} 23. Kh1 (23. Qxe5 $2 Bc5+ 24. bxc5 Rxe5 25. Nxe5 Qd4+ (25... Qxa4 $2 26. Rf2 $19) 26. Kh1 Qxe5 $19) (23. Nxe5 Qd4+ 24. Qe3 (24. Kh1 $2 Bd6 $19) 24... Qc3 $17 (24... Bxb4 25. Qxd4 Rxd4 26. Nc4 $11)) (23. Re3 $11 {feels stronger.}) 23... Bh4 (23... e4 $1 $15 24. dxe4 (24. Qxe4 $2 Qxe4 25. dxe4 Rd4 $19) 24... Qe6) 24. Qf1 $1 $14 (24. Qe4 $2 Qxe4 25. dxe4 Rd4 $19) 24... Bg5 (24... b5 $14 25. axb5 cxb5) 25. Re1 $1 $16 e4 26. h3 $1 Qd7 (26... Qh4 $2 27. g3 $18) 27. Rf7 Qd5 (27... Re7 $142 28. Rxe7 Qxe7) 28. Rf5 Qg8 29. Rxe4 ({Better is} 29. b5 $16) 29... Rxe4 $14 30. dxe4 Be7 {Against Nd6+} 31. c3 {Prevents Rd4} h4 32. Rf7 (32. Kg1 $14) 32... Rd1 $11 33. Qxd1 Qxf7 34. Nd6+ Bxd6 35. Qxd6 {[%mdl 4096] Endgame. KQ-KQ} Qf1+ 36. Kh2 {Strongly threatening Qe6+.} Qe1 $1 37. Qf8+ Kd7 38. Qf7+ Kd8 39. Qf8+ (39. Qxb7 $5 Qg3+ $8 40. Kh1 Qe1+ 41. Kh2 Qg3+ 42. Kh1 Qe1+ 43. Kh2 $11) 39... Kd7 40. Qf7+ Kd8 41. Qf4 {aiming for Qb8+. Active counter play!} Kd7 42. c4 a5 $1 43. b5 Ke6 (43... Kc8 $11) 44. e5 $16 {Black must now prevent bxc6.} Kd7 {[%mdl 8192]} (44... Qxe5 $2 45. Qxe5+ Kxe5 46. g3 $18) (44... cxb5 $16 45. Qf6+ (45. cxb5 Kd5 $11) 45... Kd7) 45. Qf7+ $18 Kd8 46. Qf8+ (46. Qxb7 Qxe5+ 47. Kh1 Qe1+ 48. Kh2 Qg3+ 49. Kh1 Qe1+ 50. Kh2 Qe5+ 51. Kh1 Qa1+ 52. Kh2 Qe5+ $11) 46... Kc7 47. Qd6+ Kc8 48. Qf8+ $2 (48. bxc6 Qg3+ 49. Kg1 Qe1+ 50. Kh2 Qg3+ 51. Kg1 Qe1+ 52. Kh2 $11) (48. e6 $18 c5 49. Qf4 (49. Qxb6 Qe5+ 50. Kg1 Qe1+ 51. Kh2 Qg3+ 52. Kg1 Qe1+ 53. Kh2 $11) (49. e7 Qh1+ 50. Kxh1 $11)) 48... Kc7 $11 49. Qd6+ {[%mdl 8192]} (49. Qg7+ $11 Kb8 50. bxc6 bxc6 51. Qg5) 49... Kc8 $18 50. e6 {Threatening mate with e7.} (50. bxc6 Qg3+ 51. Kh1 Qe1+ 52. Kh2 Qg3+ 53. Kh1 Qe1+ 54. Kh2 $11) 50... c5 51. Qf8+ $2 ({Weaker is} 51. Qxb6 Qg3+ 52. Kh1 Qe1+ 53. Kh2 Qg3+ 54. Kh1 Qe5 $11 (54... Qe1+ 55. Kh2 $11)) (51. e7 Qh1+ 52. Kxh1 $11) (51. Qf4 $1 $18 {is the precise move to win.} Kd8 52. Qb8+ (52. Qd6+ Kc8 $18) 52... Ke7 53. Qxb7+ Kf6 54. Qf7+ (54. Qxb6 Qe5+ 55. Kh1 Qe1+ 56. Kh2 Qe5+ 57. Kh1 Qe1+ 58. Kh2 $11) 54... Kg5 55. Qg7+ (55. e7 Qg3+ 56. Kg1 Qe1+ 57. Qf1 Qxe7 $11) 55... Kh5 56. Qg4+ (56. e7 Qh1+ 57. Kxh1 $11) 56... Kh6 57. Qf3 (57. Qf4+ Kg6 $18)) 51... Kc7 $16 {[#]} 52. Qf4+ Kc8 {[#]} 53. Qf8+ (53. g4 $1 $16) 53... Kc7 $11 {The position is equal.} 54. Qg7+ Kb8 55. e7 Ka7 56. Qg5 Qe4 57. Kg1 Qe1+ 58. Kh2 Qe4 59. e8=N Qxe8 60. Qxh4 Qe5+ 61. Qg3 Qd4 62. Qg4 {White wants to mate with Qxd4.} Qe5+ 63. Qg3 Qd4 64. h4 Qxc4 65. h5 Qd5 (65... Qxa4 $5 66. h6 $8 Qe4 $11) 66. Qg6 c4 67. h6 Qd3 68. Qxd3 cxd3 {KP-KP} 69. h7 d2 70. h8=Q d1=Q {Prevents Qd8. KQ-KQ} (70... d1=B 71. Qh7 Bb3 72. Qd3 Bg8 73. Kg3 Be6 74. Kf4 Bc8 75. Ke5 (75. g4 Be6 76. Ke5 Bxg4 77. Kd6 Kb8 78. Ke7 Bc8 79. Kd8 Bg4 80. Qd6+ Ka8 81. Kc7 Bf5 82. Qxb6 Bh7 83. Qxa5#)) 71. Qh4 Qd6+ 72. g3 Qd2+ 73. Kh3 Qd7+ 74. Qg4 Qh7+ 75. Kg2 Qc2+ 76. Kf1 $1 Qc1+ 77. Ke2 Qc2+ 78. Ke1 Qc1+ 79. Kf2 Qc2+ 80. Kg1 Qc1+ 81. Kg2 Qc2+ 82. Kh3 Qh7+ 83. Qh4 Qf5+ 84. Kg2 $1 Qc2+ 85. Kf3 Qb3+ 86. Ke2 Qc2+ 87. Ke3 Qb3+ 88. Kd2 Qb2+ 89. Ke3 Qb3+ 90. Ke2 Qc2+ 91. Kf3 Qb3+ 92. Kg2 Qc2+ 93. Kh3 Qf5+ 94. Kg2 {Weighted Error Value: White=0.26 (precise) /Black=0.15 (very precise) .  Loses game:     	---       	Black=2      Mistake:       	White=6     	Black=5      Inaccurate:     	White=2     	---        OK:         	White=23    	Black=33     Best:        	White=10    	Black=5      Strong:       	White=5     	Black=2} 1/2-1/2

[Event "45th FIDE Olympiad 2024"]
[Site "Budapest"]
[Date "2024.09.12"]
[Round "2.119"]
[White "Ticona Rocabado, Licael Roderick"]
[Black "Thybo, Jesper Sondergaard"]
[Result "1/2-1/2"]
[ECO "E14"]
[WhiteElo "2321"]
[BlackElo "2555"]
[Annotator "TA"]
[PlyCount "93"]
[EventDate "2024.09.05"]
[EventType "team-tourn"]
[EventCountry "HUN"]
[SourceTitle "playchess.com"]
[Source "ChessBase"]
[SourceQuality "1"]
[WhiteTeam "Bolivia"]
[BlackTeam "Denmark"]
[WhiteTeamCountry "BOL"]
[BlackTeamCountry "DEN"]
[TimeControl "40/5400+30:1800+30"]

{[%evp 19,93,-10,0,0,0,0,0,-40,-29,-217,-226,-217,-222,-225,-212,-217,-82,-77,-77,-77,82,86,83,97,79,86,100,107,77,47,46,11,17,0,0,0,0,0,0,-4,-3,-10,-8,-4,0,0,0,0,0,0,0,0,0,0,0,0,0,0,0,0,0,0,0,0,0,0,0,0,0,0,35,0,0,0,0,0]} 1. d4 Nf6 2. c4 e6 3. Nf3 d5 4. e3 Be7 5. b3 O-O 6. Bd3 c5 7. O-O cxd4 8. exd4 b6 9. Nc3 Bb7 10. Bb2 Nc6 11. cxd5 Nxd5 12. Nxd5 Qxd5 13. Bc4 Qf5 14. Ne5 $2 (14. Re1 $11) 14... Nxe5 $19 15. dxe5 Qg5 $1 {[%csl Gb7][%cal Rg5g2]} 16. g3 Rfd8 17. Qe2 Rd2 (17... Qf5 $1 $19 18. g4 Qg5) 18. Bc1 $17 {[#]} Rad8 {[%cal Og5f5]} 19. Ba6 {[#]} (19. Bxd2 $2 {too greedy.} Rxd2 20. Qe1 (20. h4 $2 Qf5 $19) 20... Qh6 $19) 19... Qf5 $2 20. Bxd2 $16 Bf3 21. Qe3 Bc5 {[#]} 22. Qf4 (22. Qg5 Qh3 23. Qxd8+ Bf8) 22... Rxd2 {[#]} 23. Qxf5 (23. Qxd2 {leads to mate.} Qh3 24. Qd8+ Bf8) 23... exf5 24. Bc4 g6 25. a4 a5 26. Rac1 Kf8 27. Rc3 Be4 28. e6 fxe6 29. Bxe6 Bd3 30. Rxd3 Rxd3 $11 {[%mdl 4096] Endgame. KRB-KRB} 31. Kh1 Rd2 32. f4 Ke7 33. Bg8 Kf6 34. Bc4 h6 35. Re1 g5 36. Re6+ Kg7 37. h4 gxf4 38. gxf4 Rf2 39. h5 Rxf4 40. Rg6+ Kh7 41. Kg2 Rh4 42. Be2 Rf4 {...Rf2+ would now be deadly.} 43. Bd3 Rf2+ 44. Kg3 f4+ 45. Kg4 Rg2+ 46. Kxf4 Rxg6 47. Bxg6+ {Whites escaped into a draw.   Weighted Error Value: White=0.15 (very precise) /Black=0.14 (very precise) .  Loses game:     	White=1     	---        Mistake:       	---       	Black=2      Inaccurate:     	White=4     	Black=1      OK:         	White=14    	Black=10     Best:        	White=4     	Black=5      Strong:       	---       	Black=1} 1/2-1/2

[Event "45th FIDE Olympiad 2024"]
[Site "Budapest"]
[Date "2024.09.12"]
[Round "2.120"]
[White "Olsen, Filip Boe"]
[Black "Pinto, Daniel"]
[Result "1/2-1/2"]
[ECO "D12"]
[WhiteElo "2441"]
[BlackElo "2273"]
[Annotator "TA"]
[PlyCount "114"]
[EventDate "2024.09.05"]
[EventType "team-tourn"]
[EventCountry "HUN"]
[SourceTitle "playchess.com"]
[Source "ChessBase"]
[SourceQuality "1"]
[WhiteTeam "Denmark"]
[BlackTeam "Bolivia"]
[WhiteTeamCountry "DEN"]
[BlackTeamCountry "BOL"]
[TimeControl "40/5400+30:1800+30"]

{[%evp 10,114,14,16,26,38,31,33,36,23,24,12,12,-16,30,0,0,2,5,0,33,33,52,37,45,54,91,28,101,65,58,46,55,46,50,47,41,41,31,8,75,10,6,12,8,0,22,23,41,38,45,52,87,90,93,91,107,85,90,56,61,6,20,7,12,0,24,21,509,156,172,136,152,145,157,137,341,215,250,250,277,259,337,332,381,0,0,0,0,0,0,0,0,0,0,0,0,0,0,0,0,0,0,0,0,0,0]} 1. d4 Nf6 2. c4 c6 3. Nf3 d5 4. e3 Bf5 5. Bd3 Bxd3 6. Qxd3 dxc4 7. Qxc4 Qa5+ 8. Nc3 Qa6 {White is slightly better.} 9. Ne5 (9. Qxa6 {simplifies} Nxa6 10. O-O e6 11. e4) 9... e6 10. a3 Be7 11. b4 O-O (11... Qxc4 $142 12. Nxc4 Nbd7) 12. O-O Qxc4 13. Nxc4 b6 14. e4 Nbd7 15. Bf4 c5 16. dxc5 bxc5 17. b5 Nh5 18. Rfd1 {White is more active.} ({Better is} 18. Bd6 $16 Bxd6 19. Nxd6) 18... Nb6 (18... Bf6 $1 $11 19. e5 Rfd8) 19. Nxb6 axb6 20. Bd6 Bxd6 21. Rxd6 Rfb8 22. a4 Nf6 23. f3 Kf8 24. Rad1 Rb7 {[#]} (24... g5 $11) 25. Rd8+ (25. e5 $1 $16 {[%cal Re5f6]} Ne8 26. Rc6) 25... Rxd8 $11 26. Rxd8+ {[%mdl 4096] Endgame. KRN-KRN} Ke7 27. Ra8 Nd7 28. f4 h6 29. Kf1 g5 30. g3 Kf6 31. Ke2 gxf4 32. gxf4 Rc7 33. Ra6 Kg6 34. Kd3 Kh5 35. e5 ({White should try} 35. f5 $14 exf5 36. exf5) 35... Kg4 36. Ke3 c4 $1 37. Ra8 f6 38. Rg8+ Kh3 $2 {[%mdl 8192]} (38... Kf5 $11) 39. Rg6 $2 (39. Kf3 $18 {and the rest is easy. Intending Rg3+ and mate.} h5 40. Ne4 (40. Rh8 Kh4 $16)) 39... fxe5 $16 40. Rxh6+ Kg4 41. fxe5 (41. Rxe6 exf4+ 42. Kd4 Rc8 $14) 41... Nc5 42. Rf6 Kh3 $2 (42... Kh5 $16) 43. Rf4 Nd3 {[#]} 44. Rd4 {Strongly threatening Rd6.} Nxe5 45. Rd6 Rd7 46. Rxe6 (46. Rxb6 Rd3+ 47. Kf4 (47. Ke4 Nd7 $11) 47... Ng6+ (47... Nd7 $2 48. Rb7 $18) 48. Kg5 Nf8 $16) 46... Rd3+ 47. Ke4 $2 (47. Kf4 $18 Nd7 48. Ne4 Kxh2 49. Rc6) 47... Nf3 $11 {The position is equal.} (47... Nd7 $5 48. Rh6+ $8 Kg2 $11) 48. Rh6+ Kg4 {Hoping for ...Ng5+.} 49. Rxb6 {[%cal Oh2h3]} Rd4+ 50. Ke3 {[%cal Oh2h3] Threatens to win with h3+!} Rd3+ 51. Ke4 {[%cal Oh2h3]} Rxc3 {KRN-KR} 52. Rg6+ Ng5+ 53. Kd4 Rc1 54. b6 {And now a5 would win.} Kf5 55. b7 {[%cal Og6g5]} Rb1 (55... Kxg6 $2 {loses.} 56. b8=Q $18 (56. b8=B $2 {perishes.} Kf5 $19)) 56. Rg8 Rxb7 {...Rc7 would now be deadly.} 57. Kxc4 Ne6 {Black defended with fortune.   Weighted Error Value: White=0.36/Black=0.25 (precise) .  Loses game:     	---       	Black=2      Missed win:     	White=2     	---        Mistake:       	White=3     	Black=3      Inaccurate:     	White=5     	Black=4      OK:         	White=17    	Black=21     Best:        	White=2     	Black=6      Strong:       	---       	Black=1} 1/2-1/2

[Event "45th FIDE Olympiad 2024"]
[Site "Budapest"]
[Date "2024.09.12"]
[Round "2.121"]
[White "Dragnev, Valentin"]
[Black "Salem, A.R. Saleh"]
[Result "1/2-1/2"]
[ECO "B51"]
[WhiteElo "2556"]
[BlackElo "2631"]
[Annotator "TA"]
[PlyCount "84"]
[EventDate "2024.09.05"]
[EventType "team-tourn"]
[EventCountry "HUN"]
[SourceTitle "playchess.com"]
[Source "ChessBase"]
[SourceQuality "1"]
[WhiteTeam "Austria"]
[BlackTeam "United Arab Emirates"]
[WhiteTeamCountry "AUT"]
[BlackTeamCountry "UAE"]
[TimeControl "40/5400+30:1800+30"]

{[%evp 10,84,0,0,-4,-8,0,0,9,17,8,-6,-10,-11,0,0,0,0,0,0,0,0,0,0,20,22,38,39,30,0,81,46,20,27,51,41,27,0,0,-102,-105,-112,0,0,0,0,0,0,0,0,303,325,320,327,319,312,352,237,254,190,229,243,269,250,234,171,172,134,125,137,171,34,144,49,62,0,0]} 1. e4 c5 2. Nf3 d6 3. Bb5+ Nd7 4. O-O a6 5. Bxd7+ Bxd7 6. c3 Nf6 7. Re1 e6 8. d4 Be7 9. dxc5 dxc5 10. e5 Nd5 11. c4 Nb6 12. Qe2 Bc6 13. Nc3 Qc7 14. b3 O-O 15. Bf4 Rad8 16. Ng5 Rd4 {[#]} 17. Qh5 $1 {[%csl Gg5][%cal Rh5h7]} Bxg5 (17... h6 18. Nge4) 18. Bxg5 Nd7 19. Be7 f5 20. Bxf8 Nxf8 21. Qe2 Ng6 {White must now prevent ...Nf4.} 22. f3 $1 Nf4 23. Qe3 {Rad1 is the strong threat.} (23. Qc2 $5 Qa5 24. Kh1 Nxg2 25. Kxg2 $11) 23... Qd8 $1 {Threatens to win with ...Qg5.} 24. Rad1 (24. Ne2 $11 {remains equal.} Nxg2 25. Kxg2) 24... Qg5 $17 {[%csl Gf4][%cal Rg5g2][%mdl 1024] Black has strong compensation.} 25. g3 {[#]} Nh3+ (25... Qh5 $1 $17 {...Nh3+ would now be deadly.} 26. gxf4 Bxf3) 26. Kg2 $11 Qh5 27. Ne2 $1 f4 $1 28. Qc3 (28. Nxf4 $2 Nxf4+ 29. gxf4 Qg4+ 30. Kf2 Rxf4 31. Rd8+ Kf7 $19) (28. gxf4 $2 Qg4+ 29. Ng3 Nxf4+ (29... Rxd1 30. Rxd1 Nxf4+ 31. Kf2 $16) 30. Kf2 Qh3 $19) 28... Ng5 29. Ng1 (29. Nxd4 $2 {too greedy.} cxd4 30. Rxd4 Qh3+ 31. Kg1 Nxf3+ $19 (31... fxg3 32. Rd8+ Kf7 33. hxg3 $11) (31... fxg3 32. hxg3 Qxg3+ 33. Kf1 $11)) 29... Qg6 $2 {[%mdl 8192]} (29... fxg3 $11 {and Black is okay.} 30. hxg3 Bxf3+ 31. Nxf3 Rxd1 (31... Qh3+ 32. Kf2 $11) 32. Rxd1 Qh3+ 33. Kf2 (33. Kg1 $2 Qxg3+ 34. Kf1 Qh3+ 35. Ke2 Qg2+ 36. Kd3 Nxf3 $19) 33... Ne4+ 34. Ke3 Nxc3 35. Rd8+ Kf7 36. Ng5+ Ke7 37. Nxh3 Kxd8) 30. Rxd4 $18 cxd4 31. Qxd4 Qc2+ 32. Qf2 Qf5 33. Qe2 h5 34. Rf1 {And now h4 would win.} h4 35. gxh4 Qg4+ 36. Kh1 Qxh4 37. Qg2 Qh5 38. h3 {Strongly threatening Qg4.} Nf7 39. Ne2 Qxe5 40. Qf2 (40. Rd1 $18) 40... Ng5 {[#]} (40... Qf6 $1 $14) 41. Ng1 ({White should try} 41. Nd4 $1 $16) 41... Qf6 42. Kh2 (42. h4 $14 Qh6 43. Kg2) 42... e5 {Weighted Error Value: White=0.27 (precise) /Black=0.29 (precise) .  Loses game:     	---       	Black=1      Mistake:       	White=4     	Black=3      Inaccurate:     	White=4     	---        OK:         	White=15    	Black=16     Best:        	White=2     	Black=3      Strong:       	White=2     	Black=2} 1/2-1/2

[Event "45th FIDE Olympiad 2024"]
[Site "Budapest"]
[Date "2024.09.12"]
[Round "2.122"]
[White "Al Hosani, Omran"]
[Black "Horvath, Dominik"]
[Result "1/2-1/2"]
[ECO "D85"]
[WhiteElo "2241"]
[BlackElo "2559"]
[Annotator "TA"]
[PlyCount "73"]
[EventDate "2024.09.05"]
[EventType "team-tourn"]
[EventCountry "HUN"]
[SourceTitle "playchess.com"]
[Source "ChessBase"]
[SourceQuality "1"]
[WhiteTeam "United Arab Emirates"]
[BlackTeam "Austria"]
[WhiteTeamCountry "UAE"]
[BlackTeamCountry "AUT"]
[TimeControl "40/5400+30:1800+30"]

{[%evp 27,73,0,0,-10,-16,-25,-21,-22,-23,-24,30,29,8,0,0,0,0,-16,0,0,0,0,0,0,0,0,0,0,0,0,0,0,22,0,0,0,0,0,0,0,0,0,0,0,0,0,68,-298]} 1. d4 Nf6 2. c4 g6 3. Nc3 d5 4. cxd5 Nxd5 5. e4 Nxc3 6. bxc3 Bg7 7. Nf3 c5 8. Rb1 O-O 9. Be2 cxd4 10. cxd4 Qa5+ 11. Bd2 Qxa2 12. O-O b6 13. Qc1 Qe6 14. Bc4 Qxe4 {[%cal Oc8f5]} 15. Bxf7+ Rxf7 16. Qxc8+ Rf8 17. Qc4+ {The position is equal.} e6 18. Rb5 {[#] Threatens to win with Ng5.} Re8 (18... Qc6 $142 $1 19. Qb3 Na6) 19. h4 {[%mdl 1024] White has compensation.} Nd7 20. Re1 Rac8 $1 21. Qf1 Qc6 22. Rc1 Qd6 23. h5 Bxd4 24. hxg6 hxg6 25. Rd1 $1 {[#] Bb4 is the strong threat.} Bg7 26. Bb4 Qc6 27. Rg5 $1 Nf8 28. Bxf8 Kxf8 29. Rxg6 {Black must now prevent Ng5.} Red8 30. Re1 {[%cal Of3g5] And now Ng5! would win.} (30. Rxd8+ {looks sharper.} Rxd8 31. Ng5 Qc2 32. Nxe6+ Ke8 33. Qb5+) 30... Qc4 31. Ng5 Qxf1+ 32. Kxf1 Bc3 33. Rexe6 Rd1+ 34. Ke2 Re1+ 35. Kd3 Rxe6 36. Rxe6 b5 (36... Bb2 $11) 37. Ke4 $2 {[%mdl 40960] Weighted Error Value: White=0.03 (flawless) /Black=0.13 (very precise) .  Loses game:     	White=1     	---        Mistake:       	---       	Black=2      OK:         	White=9     	Black=10     Best:        	White=2     	Black=2      Strong:       	White=2     	Black=1     . An unexpected result.} (37. Ra6 $14) 1/2-1/2

[Event "45th FIDE Olympiad 2024"]
[Site "Budapest"]
[Date "2024.09.12"]
[Round "2.123"]
[White "Blohberger, Felix"]
[Black "Ammar, Sedrani"]
[Result "1-0"]
[ECO "E17"]
[WhiteElo "2520"]
[BlackElo "2226"]
[Annotator "TA"]
[PlyCount "115"]
[EventDate "2024.09.05"]
[EventType "team-tourn"]
[EventCountry "HUN"]
[SourceTitle "playchess.com"]
[Source "ChessBase"]
[SourceQuality "1"]
[WhiteTeam "Austria"]
[BlackTeam "United Arab Emirates"]
[WhiteTeamCountry "AUT"]
[BlackTeamCountry "UAE"]
[TimeControl "40/5400+30:1800+30"]

{[%evp 21,115,18,22,12,16,0,16,6,25,6,30,19,41,46,53,25,55,41,44,41,34,41,78,47,37,42,116,140,125,114,128,142,128,122,136,132,158,156,146,139,155,150,168,150,162,167,168,133,145,142,153,95,94,96,133,91,224,201,230,235,235,199,343,359,409,338,338,338,338,338,338,338,426,542,554,483,581,508,825,847,783,780,1016,981,1006,991,1044,1000,1066,1033,1065,1033,1008,1000,985,945]} 1. Nf3 d5 2. g3 Nf6 3. Bg2 e6 4. O-O Be7 5. c4 O-O 6. b3 b6 7. Bb2 Bb7 8. cxd5 exd5 9. d4 Re8 10. Nc3 {[%cal Bb1c3,Bc3e2,Be2f4][%mdl 32]} Nbd7 11. Rc1 a6 12. e3 Bd6 13. Ne2 c6 14. Nf4 {The position is equal.} Qc7 15. Rc2 Rad8 16. Qc1 Qb8 17. Nd3 Ne4 18. Rd1 Qa8 19. Nfe5 Nxe5 20. dxe5 Bf8 21. f3 {[%cal Bf2f3,Bf3f4,Bf4f5][%mdl 32]} Ng5 {[%cal Be4g5,Bg5e6,Be6c7,Bc7d5,Bd5f4][%mdl 32]} 22. h4 Ne6 23. f4 c5 (23... a5 $14) 24. f5 $16 Nc7 25. Nf4 $36 {[%mdl 2048] Black is under strong pressure.} d4 26. exd4 Bxg2 27. Rxg2 Nd5 28. Kh2 cxd4 29. Bxd4 Nxf4 30. Qxf4 (30. gxf4 $2 {loses.} Qe4 31. Bf2 (31. Qd2 $2 Bc5 $19) 31... Rxd1 (31... Qxf5 32. Rxd8 Rxd8 33. Rg5 $19) 32. Qxd1 Qxf4+ (32... Qxf5 33. Qg4 $11) 33. Bg3 Qxf5 $19) 30... Rd5 {[%cal Oe8e5]} 31. Rf1 Bc5 32. Bb2 Qd8 {[#]} 33. e6 $1 {[%mdl 512] Hoping for exf7+.} f6 34. b4 Be7 35. Rff2 {White is much more active.} Qd6 36. a3 (36. Qxd6 $142 Rxd6 37. Rf3) 36... Qxf4 37. Rxf4 Red8 38. h5 b5 {This costs Black the game.} (38... g6 $16) 39. Rf3 Kf8 40. Rgf2 Rc8 41. Kg2 h6 (41... Bd6 $142 42. h6 Ke7 43. hxg7 Rg8) 42. Rc3 $18 Rxc3 43. Bxc3 {[%mdl 4096] Endgame. KRB-KRB} Ke8 44. g4 {[#] Threatens to win with Rd2.} Rd3 45. Rf3 Rd1 46. Kf2 Bd8 47. Rg3 {White is clearly winning.} Rb1 48. Ke2 Rc1 49. Bd4 {Rc3 would now be deadly.} Rc2+ (49... Rc4 $142) 50. Kd3 Ra2 51. Ke4 Re2+ 52. Re3 Rg2 53. Bc5 Rxg4+ 54. Kd5 {aiming for e7.} Be7 55. Kc6 Rg5 56. Rd3 {Black must now prevent Rd7.} Rxf5 57. Rd7 Bxc5 58. bxc5 {Weighted Error Value: White=0.09 (flawless) /Black=0.25 (precise) .  Mistake:       	White=1     	Black=4      Inaccurate:     	White=3     	Black=2      OK:         	White=16    	Black=13     Best:        	White=3     	---} 1-0